Workbook

Sheet Input
B2: Initial inputs
A6: Client name:
A8: Financial adviser:
A10: First membership year: | B10: Before 2008/09
A12: £ Column | B12: ="Enter the pension input amount. If your client became a member of a registered pension scheme before "&Calcs!B62&", earlier years will only show if needed for the calculation." -> Enter the pension input amount. If your client became a member of a registered pension scheme before 2023/24, earlier years will only show if needed for the calculation.
A13: Tapered AA Column | B13: Select "Calculate Tapered AA" for the years you think a tapered annual allowance might apply. We will ask for further information in the following screen.
A15: Tax Year | B15: £ | C15: Tapered AA - select from list
A16: Keep this row hidden for VBA purposes
A17: =Calcs!A3 -> 2008/09
A18: =Calcs!A4 -> 2009/10
A19: =Calcs!A5 -> 2010/11
A20: =Calcs!A6 -> 2011/12 (pre 14.10.11)
A21: =Calcs!A7 -> 2011/12 (post 13.10.11)
A22: =Calcs!A8 -> 2012/13
A23: =Calcs!A9 -> 2013/14
A24: =Calcs!A10 -> 2014/15
A25: =Calcs!A11 -> 2015/16 (pre 9.7.15)
A26: =Calcs!A12 -> 2015/16 (post 8.7.15)
A27: =Calcs!A13 -> 2016/17
A28: =Calcs!A14 -> 2017/18
A29: =Calcs!A15 -> 2018/19
A30: =Calcs!A16 -> 2019/20
A31: =Calcs!A17 -> 2020/21
A32: =Calcs!A18 -> 2021/22
A33: =Calcs!A19 -> 2022/23
A34: =Calcs!A20 -> 2023/24
A35: =Calcs!A21 -> 2024/25
A36: =Calcs!A22 -> 2025/26
A37: =Calcs!A23 -> 2026/27

Sheet Welcome
A2: Welcome
A6: Excel requirements
A7: To use this tool you will need to click any “Enable Editing” or “Enable Content” pop up message. If you receive an error message stating “Cannot run the macro… “ then press F1 to search how to enable macros.
A9: Calculator outcome
A10: The accuracy of the results will depend on the accuracy of the information provided. We have assumed that your client is a relevant UK individual and has been a member of a registered pension scheme for each tax year from the year of joining.
A12: This calculator cannot account for every scenario so if further assistance is needed please phone our pensions technical team on 02380 726 010 option 1. Calls are recorded for training purposes and to avoid misunderstandings.
A14: Guidance
A15: We recommend you read HMRC's guidance on the tapered annual allowance at -
A18: For our summary on the tapered annual allowance, please read
A21: Legal
A22: Please note, neither Quilter nor its employees are authorised to provide tax or legal advice and we cannot accept responsibility for any action taken or refrained from being taken as a result of the information contained in this calculator. This document is based on Quilter’s interpretation of the law and HMRC’s practice as at April 2026. We believe this interpretation is correct, but cannot guarantee it. Tax relief and the tax treatment of investment funds may change. The amount of any tax relief will depend on the investor’s individual circumstances. Quilter is the trading name of Quilter Investment Platform Limited and Quilter Life & Pensions Limited. Quilter Investment Platform Limited and Quilter Life & Pensions Limited are registered in England and Wales under numbers 1680071 and 4163431 respectively. Registered Office at Senator House, 85 Queen Victoria Street, London, EC4V 4AB, United Kingdom. Quilter Investment Platform Limited is authorised and regulated by the Financial Conduct Authority. Quilter Life & Pensions Limited is authorised by the Prudential Regulation Authority and regulated by the Financial Conduct Authority and the Prudential Regulation Authority. Their Financial Services register numbers are 165359 and 207977 respectively. VAT number 386 1301 59.

Sheet Taper Input
C2: Taper inputs
A5: =commentsHeading -> (1) Net income
A6: =IF(comments="","",comments) -> In general, this will be a person’s total taxable income. It will be made up of things like salary, benefits in kind, dividends, rental income. It will not include things like salary sacrifice, net pay arrangements or the first £30,000 of a redundancy payment as these are not taxable. If your client has complicated finances, you may need to refer them to their accountant to work out the net income. The definition in legislation is ‘net income for the tax year is calculated under steps 1 and 2 of section 23 of the Income Tax Act 2007’.
A8: As you select each field, the box above on the left will change to give information about what to key in that field.
A10: Tax year | B10: (1) Net income | C10: (2) Salary sacrifice or flexible remuneration | D10: Money purchase schemes | G10: (6) Defined benefit or Cash Balance Pension Input | H10: (7) Taxable lump sum death benefit | J10: Threshold income (1)+(2)-(3)-(7) | K10: Adjusted income (1)+(4)+(5)+(6)-(7) | L10: Applicable annual allowance
D11: (3) Relief at source contributions | E11: (4) Net pay arrangements or other reliefs | F11: (5) Employer contributions
A12: 2016/17 | J12: =MAX(B12+C12-D12-H12,0) -> 0 | K12: =B12+E12+F12+G12-H12 -> 0 | L12: =Calcs!B13-IF(J12>110000,MIN(MAX(INT((FLOOR(K12-150000,2))/2),0),30000)) -> 40000
A13: 2017/18 | J13: 0 | K13: 0 | L13: =Calcs!B14-IF(J13>110000,MIN(MAX(INT((FLOOR(K13-150000,2))/2),0),30000)) -> 40000
A14: 2018/19 | J14: 0 | K14: 0 | L14: =Calcs!B15-IF(J14>110000,MIN(MAX(INT((FLOOR(K14-150000,2))/2),0),30000)) -> 40000
A15: 2019/20 | J15: 0 | K15: 0 | L15: =Calcs!B16-IF(J15>110000,MIN(MAX(INT((FLOOR(K15-150000,2))/2),0),30000)) -> 40000
A16: 2020/21 | J16: 0 | K16: 0 | L16: =Calcs!B17-IF(J16>200000,MIN(MAX(INT((FLOOR(K16-240000,2))/2),0),36000)) -> 40000
A17: 2021/22 | J17: 0 | K17: 0 | L17: =Calcs!B18-IF(J17>200000,MIN(MAX(INT((FLOOR(K17-240000,2))/2),0),36000)) -> 40000
A18: 2022/23 | J18: =MAX(B18+C18-D18-H18,0) -> 0 | K18: =B18+E18+F18+G18-H18 -> 0 | L18: =Calcs!B19-IF(J18>200000,MIN(MAX(INT((FLOOR(K18-240000,2))/2),0),36000)) -> 40000
A19: 2023/24 | J19: =MAX(B19+C19-D19-H19,0) -> 0 | K19: =B19+E19+F19+G19-H19 -> 0 | L19: =Calcs!B20-IF(J19>200000,MIN(MAX(INT((FLOOR(K19-260000,2))/2),0),50000)) -> 60000
A20: 2024/25 | J20: =MAX(B20+C20-D20-H20,0) -> 0 | K20: =B20+E20+F20+G20-H20 -> 0 | L20: =Calcs!B21-IF(J20>200000,MIN(MAX(INT((FLOOR(K20-260000,2))/2),0),50000)) -> 60000
A21: 2025/26 | J21: =MAX(B21+C21-D21-H21,0) -> 0 | K21: =B21+E21+F21+G21-H21 -> 0 | L21: =Calcs!B22-IF(J21>200000,MIN(MAX(INT((FLOOR(K21-260000,2))/2),0),50000)) -> 60000
A22: 2026/27 | J22: =MAX(B22+C22-D22-H22,0) -> 0 | K22: =B22+E22+F22+G22-H22 -> 0 | L22: =Calcs!B23-IF(J22>200000,MIN(MAX(INT((FLOOR(K22-260000,2))/2),0),50000)) -> 60000
C24: =Calcs!B42 -> 
C25: =Calcs!B53 -> Currently set to
B52: ='Taper Input'!D16? -> 

Sheet Results
A2: * This figure is the annual allowance, taking into account the transitional rules and the pension inputs made in this complete tax year. | B2: Results
A5: Date: | B5: =TODAY() -> 2026-04-27
A7: Client's name: | B7: =IF(inputName="","",inputName) -> 
A9: Financial Adviser: | B9: =IF(adviserName="","",adviserName) -> 
A11: Starting tax year: | B11: =taxStartYear -> Before 2008/09
A13: Calculation basis: | B13: =IF(maxCheck=TRUE,"Maximum","Specific")&" contribution in " & currentYear -> Maximum contribution in 2026/27
A15: Tax year | B15: Pension input | C15: Annual allowance | D15: Carry forward available | E15: Excess over allowance | F15: Excess covered by carry forward | G15: Taxable excess | H15: ="Carry forward for " & currentYear -> Carry forward for 2026/27
A16: =Calcs!A3 -> 2008/09 | B16: =Calcs!D3 -> 0 | C16: =Calcs!H3 -> 235000 | D16: =Calcs!I3 -> 50000 | E16: =Calcs!E3 -> 0 | G16: =Calcs!T3 -> 0
A19: =Calcs!A4 -> 2009/10 | B19: =Calcs!D4 -> 0 | C19: =Calcs!H4 -> 245000 | D19: =Calcs!I4 -> 50000 | E19: =Calcs!E4 -> 0 | G19: =Calcs!T4 -> 0
A22: =Calcs!A5 -> 2010/11 | B22: =Calcs!D5 -> 0 | C22: =Calcs!H5 -> 255000 | D22: =Calcs!I5 -> 50000 | E22: =Calcs!E5 -> 0 | G22: =Calcs!T5 -> 0
A25: =Calcs!A6 -> 2011/12 (pre 14.10.11) | B25: =Calcs!D6 -> 0 | C25: =IF(Calcs!H6<>255000,FIXED(Calcs!H6) & "*","255,000.00") -> 255,000.00 | D25: NA | E25: =Calcs!E6 -> 0 | F25: 0 | G25: =Calcs!T6 -> 0
F26: 0
F27: 0
A28: =Calcs!A7 -> 2011/12 (post 13.10.11) | B28: =Calcs!D7 -> 0 | C28: =Calcs!H7 -> 50000 | D28: =Calcs!I7 -> 50000 | E28: =Calcs!E7 -> 0 | F28: 0 | G28: =Calcs!T7 -> 0
F29: 0
F30: 0
A31: =Calcs!A8 -> 2012/13 | B31: =Calcs!D8 -> 0 | C31: =Calcs!H8 -> 50000 | D31: =Calcs!I8 -> 50000 | E31: =Calcs!E8 -> 0 | F31: 0 | G31: =Calcs!T8 -> 0
F32: 0
F33: 0
A34: =Calcs!A9 -> 2013/14 | B34: =Calcs!D9 -> 0 | C34: =Calcs!H9 -> 50000 | D34: =Calcs!I9 -> 50000 | E34: =Calcs!E9 -> 0 | F34: 0 | G34: =Calcs!T9 -> 0
F35: 0
F36: 0
A37: =Calcs!A10 -> 2014/15 | B37: =Calcs!D10 -> 0 | C37: =Calcs!H10 -> 40000 | D37: =Calcs!I10 -> 40000 | E37: =Calcs!E10 -> 0 | F37: 0 | G37: =Calcs!T10 -> 0
F38: 0
F39: 0
A40: =Calcs!A11 -> 2015/16 (pre 9.7.15) | B40: =Calcs!D11 -> 0 | C40: =Calcs!H11 -> 80000 | D40: NA | E40: =Calcs!E11 -> 0 | F40: 0 | G40: =Calcs!T11 -> 0
F41: 0
F42: 0
A43: =Calcs!A12 -> 2015/16 (post 8.7.15) | B43: =Calcs!D12 -> 0 | C43: =IF(Calcs!F11 = "N","40,000.00",IF(Calcs!H12<>0,FIXED(Calcs!H12) & "*","0.00")) -> 40,000.00* | D43: =Calcs!I12 -> 40000 | E43: =Calcs!E12 -> 0 | F43: 0 | G43: =Calcs!T12 -> 0
F44: 0
F45: 0
A46: =Calcs!A13 -> 2016/17 | B46: =Calcs!D13 -> 0 | C46: =Calcs!H13 -> 40000 | D46: =Calcs!I13 -> 40000 | E46: =Calcs!E13 -> 0 | F46: 0 | G46: =Calcs!T13 -> 0
F47: 0
F48: 0
A49: =Calcs!A14 -> 2017/18 | B49: =Calcs!D14 -> 0 | C49: =Calcs!H14 -> 40000 | D49: =Calcs!I14 -> 40000 | E49: =Calcs!E14 -> 0 | F49: 0 | G49: =Calcs!T14 -> 0
F50: 0
F51: 0
A52: =Calcs!A15 -> 2018/19 | B52: =Calcs!D15 -> 0 | C52: =Calcs!H15 -> 40000 | D52: =Calcs!I15 -> 40000 | E52: =Calcs!E15 -> 0 | F52: 0 | G52: =Calcs!T15 -> 0
F53: 0
F54: 0
A55: =Calcs!A16 -> 2019/20 | B55: =Calcs!D16 -> 0 | C55: =Calcs!H16 -> 40000 | D55: =Calcs!I16 -> 40000 | E55: =Calcs!E16 -> 0 | F55: 0 | G55: =Calcs!T16 -> 0
F56: 0
F57: 0
A58: =Calcs!A17 -> 2020/21 | B58: =Calcs!D17 -> 0 | C58: =Calcs!H17 -> 40000 | D58: =Calcs!I17 -> 40000 | E58: =Calcs!E17 -> 0 | F58: 0 | G58: =Calcs!T17 -> 0
F59: 0
F60: 0
A61: =Calcs!A18 -> 2021/22 | B61: =Calcs!D18 -> 0 | C61: =Calcs!H18 -> 40000 | D61: =Calcs!I18 -> 40000 | E61: =Calcs!E18 -> 0 | F61: 0 | G61: =Calcs!T18 -> 0
F62: 0
F63: 0
A64: =Calcs!A19 -> 2022/23 | B64: =Calcs!D19 -> 0 | C64: =Calcs!H19 -> 40000 | D64: =Calcs!I19 -> 40000 | E64: =Calcs!E19 -> 0 | F64: 0 | G64: =Calcs!T19 -> 0
F65: 0
F66: 0
A67: =Calcs!A20 -> 2023/24 | B67: =Calcs!D20 -> 0 | C67: =Calcs!H20 -> 60000 | D67: =Calcs!I20 -> 60000 | E67: =Calcs!E20 -> 0 | F67: 0 | G67: =Calcs!T20 -> 0 | H67: =Calcs!L23 -> 60000
F68: 0
F69: 0
A70: =Calcs!A21 -> 2024/25 | B70: =Calcs!D21 -> 0 | C70: =Calcs!H21 -> 60000 | D70: =Calcs!I21 -> 60000 | E70: =Calcs!E21 -> 0 | F70: 2,000.00 from 2023/24 | G70: =Calcs!T21 -> 0 | H70: =Calcs!P23 -> 60000
F71: 0
F72: 0
A73: =Calcs!A22 -> 2025/26 | B73: =Calcs!D22 -> 0 | C73: =Calcs!H22 -> 60000 | D73: =Calcs!I22 -> 60000 | E73: =Calcs!E22 -> 0 | F73: 0 | G73: =Calcs!T22 -> 0 | H73: =Calcs!S23 -> 60000
F74: 0
F75: 0
A76: =Calcs!A23 -> 2026/27 | B76: =Calcs!D23 -> 0 | C76: =Calcs!H23 -> 60000 | D76: =Calcs!I23 -> 60000 | E76: =Calcs!E23 -> 0 | F76: 8,000.00 from 2023/24 | G76: =Calcs!T23 -> 0 | H76: =Calcs!I23 -> 60000
F77: 3,000.00 from 2025/26
F78: 0
B79: =IF(maxCheck=TRUE,"Maximum additional " & IF(AND(Inv_Emp="",show_taper=0),"",LOWER(Inv_Emp) & " ") & "gross contribution payable by 05/04/20" & RIGHT(currentYear,2) & ":",IF(excess<=0,"Based on the data entered, the proposed contribution may be paid.","Based on the data entered, the proposed contribution will result in a tax charge.")) -> Maximum additional gross contribution payable by 05/04/2027: | H79: =IF(maxCheck=TRUE,H67+H70+H73+H76,"") -> 240000
A81: ="Your client must have sufficient relevant UK earnings to make this contribution. "& IF(AND(maxCheck=TRUE,tapercount>0),"When determining the maximum contribution that can be made, this calculation has taken into account the effect this contribution has on the tapered annual allowance. ","") -> Your client must have sufficient relevant UK earnings to make this contribution.
A82: =IF(TODAY()<DATE(20&RIGHT(currentYear,2),4,6),"","Results correct as at 5th April 20" & RIGHT(currentYear,2) &". Please contact Quilter for new tax-year version") -> 

Sheet Overview
C2: Taper overview
A6: Tax year | B6: Net income | C6: Salary sacrifice or flexible remuneration | D6: Money purchase schemes | G6: Defined benefit or Cash Balance Pension Input | H6: Taxable lump sum death benefit | J6: Threshold income | K6: Adjusted income | M6: Applicable annual allowance
D7: Relief at source contributions | E7: Net pay arrangements or other reliefs | F7: Employer contributions
A8: 2016/17 | B8: ='Taper Input'!B12 -> 0 | C8: ='Taper Input'!C12 -> 0 | D8: ='Taper Input'!D12 -> 0 | E8: ='Taper Input'!E12 -> 0 | F8: ='Taper Input'!F12 -> 0 | G8: ='Taper Input'!G12 -> 0 | H8: ='Taper Input'!H12 -> 0 | J8: ='Taper Input'!J12 -> 0 | K8: ='Taper Input'!K12 -> 0 | M8: ='Taper Input'!L12 -> 40000
A9: 2017/18 | B9: ='Taper Input'!B13 -> 0 | C9: ='Taper Input'!C13 -> 0 | D9: ='Taper Input'!D13 -> 0 | E9: ='Taper Input'!E13 -> 0 | F9: ='Taper Input'!F13 -> 0 | G9: ='Taper Input'!G13 -> 0 | H9: ='Taper Input'!H13 -> 0 | J9: ='Taper Input'!J13 -> 0 | K9: ='Taper Input'!K13 -> 0 | M9: ='Taper Input'!L13 -> 40000
A10: 2018/19 | B10: ='Taper Input'!B14 -> 0 | C10: ='Taper Input'!C14 -> 0 | D10: ='Taper Input'!D14 -> 0 | E10: ='Taper Input'!E14 -> 0 | F10: ='Taper Input'!F14 -> 0 | G10: ='Taper Input'!G14 -> 0 | H10: ='Taper Input'!H14 -> 0 | J10: ='Taper Input'!J14 -> 0 | K10: ='Taper Input'!K14 -> 0 | M10: ='Taper Input'!L14 -> 40000
A11: 2019/20 | B11: ='Taper Input'!B15 -> 0 | C11: ='Taper Input'!C15 -> 0 | D11: ='Taper Input'!D15 -> 0 | E11: ='Taper Input'!E15 -> 0 | F11: ='Taper Input'!F15 -> 0 | G11: ='Taper Input'!G15 -> 0 | H11: ='Taper Input'!H15 -> 0 | J11: ='Taper Input'!J15 -> 0 | K11: ='Taper Input'!K15 -> 0 | M11: ='Taper Input'!L15 -> 40000
A12: 2020/21 | B12: ='Taper Input'!B16 -> 0 | C12: ='Taper Input'!C16 -> 0 | D12: ='Taper Input'!D16 -> 0 | E12: ='Taper Input'!E16 -> 0 | F12: ='Taper Input'!F16 -> 0 | G12: ='Taper Input'!G16 -> 0 | H12: ='Taper Input'!H16 -> 0 | J12: ='Taper Input'!J16 -> 0 | K12: ='Taper Input'!K16 -> 0 | M12: ='Taper Input'!L16 -> 40000
A13: 2021/22 | B13: ='Taper Input'!B17 -> 0 | C13: ='Taper Input'!C17 -> 0 | D13: ='Taper Input'!D17 -> 0 | E13: ='Taper Input'!E17 -> 0 | F13: ='Taper Input'!F17 -> 0 | G13: ='Taper Input'!G17 -> 0 | H13: ='Taper Input'!H17 -> 0 | J13: ='Taper Input'!J17 -> 0 | K13: ='Taper Input'!K17 -> 0 | M13: ='Taper Input'!L17 -> 40000
A14: 2022/23 | B14: ='Taper Input'!B18 -> 0 | C14: ='Taper Input'!C18 -> 0 | D14: ='Taper Input'!D18 -> 0 | E14: ='Taper Input'!E18 -> 0 | F14: ='Taper Input'!F18 -> 0 | G14: ='Taper Input'!G18 -> 0 | H14: ='Taper Input'!H18 -> 0 | J14: ='Taper Input'!J18 -> 0 | K14: ='Taper Input'!K18 -> 0 | M14: ='Taper Input'!L18 -> 40000
A15: 2023/24 | B15: ='Taper Input'!B19 -> 0 | C15: ='Taper Input'!C19 -> 0 | D15: ='Taper Input'!D19 -> 0 | E15: ='Taper Input'!E19 -> 0 | F15: ='Taper Input'!F19 -> 0 | G15: ='Taper Input'!G19 -> 0 | H15: ='Taper Input'!H19 -> 0 | J15: ='Taper Input'!J19 -> 0 | K15: ='Taper Input'!K19 -> 0 | M15: ='Taper Input'!L19 -> 60000
A16: 2024/25 | B16: ='Taper Input'!B20 -> 0 | C16: ='Taper Input'!C20 -> 0 | D16: ='Taper Input'!D20 -> 0 | E16: ='Taper Input'!E20 -> 0 | F16: ='Taper Input'!F20 -> 0 | G16: ='Taper Input'!G20 -> 0 | H16: ='Taper Input'!H20 -> 0 | J16: ='Taper Input'!J20 -> 0 | K16: ='Taper Input'!K20 -> 0 | M16: ='Taper Input'!L20 -> 60000
A17: 2025/26 | B17: ='Taper Input'!B21 -> 0 | C17: ='Taper Input'!C21 -> 0 | D17: ='Taper Input'!D21 -> 0 | E17: ='Taper Input'!E21 -> 0 | F17: ='Taper Input'!F21 -> 0 | G17: ='Taper Input'!G21 -> 0 | H17: ='Taper Input'!H21 -> 0 | J17: ='Taper Input'!J21 -> 0 | K17: ='Taper Input'!K21 -> 0 | M17: ='Taper Input'!L21 -> 60000
A18: 2026/27 | B18: ='Taper Input'!B22 -> 0 | C18: ='Taper Input'!C22 -> 0 | D18: ='Taper Input'!D22 -> 0 | E18: ='Taper Input'!E22 -> 0 | F18: ='Taper Input'!F22 -> 0 | G18: ='Taper Input'!G22 -> 0 | H18: ='Taper Input'!H22 -> 0 | J18: ='Taper Input'!J22 -> 0 | K18: ='Taper Input'!K22 -> 0 | M18: ='Taper Input'!L22 -> 60000
A19: New 2026/27 | B19: =B18 -> 0 | C19: =C18+IF(AND(Inv_Emp="Employer",empsalsac = TRUE),Results!H79) -> 0 | D19: =D18+IF(Inv_Emp="Investor",Results!H79) -> 0 | E19: =E18 -> 0 | F19: =F18+IF(Inv_Emp="Employer",Results!H79) -> 0 | G19: =G18 -> 0 | H19: =H18 -> 0 | J19: =MAX(B19+C19-D19-H19,0) -> 0 | K19: =B19+E19+F19+G19-H19 -> 0 | M19: =Calcs!B23-IF(J19>Threshold,MIN(MAX(INT((FLOOR(K19-Adjusted,2))/2),0),TaperMaxDeduction)) -> 60000
A21: =IFERROR("The '" & A19 & "' row shows how the applicable annual allowance will change if an additional gross " & LOWER(LEFT(inv_emp_full,8)) & " contribution of £" & FIXED(Results!H79) & " is made","") -> The 'New 2026/27' row shows how the applicable annual allowance will change if an additional gross contribution of £240,000.00 is made

Sheet Notes
A2: Notes
A7: Maximum contribution
A10: Carry forward
A13: Carry forward available for 2008/09 - 2011/12, inclusive
A16: 2011/12 - Straddling tax year
A19: 2015/16 - Pre and post alignment tax year
A22: Tapered annual allowance
A28: Contribution limits

Sheet Error Page
C2: Error
C5: We are sorry but an error has occurred with this tool.
C6: Error code: | D6: 1004
C7: Things you should try:
C8: Please reopen this tool from our website.
C9: When using this tool please ensure that:
C10: 1. Macros are enabled
C11: 2. Protected view is disabled
C12: Please view the Excel Help files (press F1) or for further information about how to do this
C14: Please note that this tool has been tested on Windows 11, Microsoft 365 for enterprise.
C15: Compatibility with other operating systems or versions of Excel or is not guaranteed.
C17: If you are still experiencing problems using this tool, please contact technicalsolutionspensions@quilter.com

Sheet Comments (hidden)
A1: ='Taper Input'!B10 -> (1) Net income | B1: ='Taper Input'!C10 -> (2) Salary sacrifice or flexible remuneration | C1: ='Taper Input'!D11 -> (3) Relief at source contributions | D1: ='Taper Input'!E11 -> (4) Net pay arrangements or other reliefs | E1: ='Taper Input'!F11 -> (5) Employer contributions | F1: ='Taper Input'!G10 -> (6) Defined benefit or Cash Balance Pension Input | G1: ='Taper Input'!H10 -> (7) Taxable lump sum death benefit | H1: ='Taper Input'!E24 -> 0
A2: In general, this will be a person’s total taxable income. It will be made up of things like salary, benefits in kind, dividends, rental income. It will not include things like salary sacrifice, net pay arrangements or the first £30,000 of a redundancy payment as these are not taxable. If your client has complicated finances, you may need to refer them to their accountant to work out the net income. The definition in legislation is ‘net income for the tax year is calculated under steps 1 and 2 of section 23 of the Income Tax Act 2007’. | B2: If your client has made a pension contribution via a new salary sacrifice or flexible remuneration arrangement that started on or after 9 July 2015, you need to add the value of the sacrifice/flexible remuneration here. This may include agreements that have to be agreed each year or any increases made to a long standing agreement after 8th July 2015. Don’t forget that as this value will now be paid by the employer as a pension contribution instead of being paid to your client, it needs to be included in the employer contribution box too. | C2: This is where the pension scheme adds 20% tax relief to any personal contributions that are made on behalf of a member. Enter the total gross contributions made via relief at source to a UK or overseas pension scheme. | D2: Net pay arrangement - This is where a pension contribution is deducted from gross salary. Tax relief is gained by way of not paying income tax in the first place, however unlike a salary sacrifice, national insurance is still calculated on the gross salary. Other reliefs – This is where you make a claim for tax relief directly from HMRC because the scheme doesn’t offer any or enough tax relief. What to enter in box - Enter the gross total of: • contributions paid by the net pay arrangement. • amount of a claim for excess relief for a net pay arrangement. • contributions where a claim is made because the pension scheme does not offer any or enough tax relief. | E2: Enter the gross employer contributions made to a UK pension scheme. Enter the gross employer contributions made to an overseas pension scheme where contributions for a member started before 6 April 2006 which corresponds with a UK registered pension scheme. Don’t forget that if your client has a salary sacrifice or flexible remuneration arrangement, this needs to be included here. | F2: Enter the pension input for any defined benefit or cash balance scheme. The input amount for a defined benefit or cash balance is not the total contributions into the scheme, instead it relates to the increase in benefits within the scheme. For information on how to work out the pension input please see the below sites. Defined benefit: Go to www.gov.uk website, search for ptm053301 Cash balance: Go to www.gov.uk website, search for ptm053400 | G2: Enter the value of any lump sum death benefit paid from a pension scheme that was taxable. For details of which lump sum death benefits are taxable please go to www.gov.uk website, search for ptm073010 | H2: The type of contribution made will affect your clients threshold and adjusted income, which in turn may affect the annual allowance. For example : • An investor contribution will reduce the threshold income. • A normal employer contribution will increase the adjusted income. If the threshold and adjusted income are changed this could mean the tapered annual allowance: • applies where it didn’t before • no longer applies where it did before • increases or decreases
A4: (1) Net income
A5: In general, this will be a person’s total taxable income. It will be made up of things like salary, benefits in kind, dividends, rental income. It will not include things like salary sacrifice, net pay arrangements or the first £30,000 of a redundancy payment as these are not taxable. If your client has complicated finances, you may need to refer them to their accountant to work out the net income. The definition in legislation is ‘net income for the tax year is calculated under steps 1 and 2 of section 23 of the Income Tax Act 2007’.

Sheet UPDATE TO NEW YEAR (hidden)

Sheet Calcs (hidden)
A1: 2026/27 | H1: T | J1: T-3 | N1: T-2 | R1: T-1 | U1: Explanations/Wording functions (up to column Y) | Z1: Checks for errors | AA1: Threshold income | AB1: Adjusted Income | AC1: Taper minimum | AD1: Max deduction
A2: Before 2008/09 | B2: Max Annual Allowance | C2: Max Carry Over | D2: Contributions | E2: Excess over Annual Allowance | F2: RPS member? | G2: min row which affects allowance | H2: Annual Allowance | I2: Available | J2: Brought forward | K2: Used | L2: Available | M2: excess | N2: Brought forward | O2: Used | P2: Available | Q2: excess | R2: Used | S2: Available | T2: taxable excess | U2: t-3 | V2: t-2 | W2: t-1 | X2: Is Tick Box ticked | Y2: Wording for taper calcs | Z2: Taper Input - If employer contribution less than salary sacrifice | AA2: Changes after March 2020 Budget
A3: 2008/09 | B3: 235000 | C3: 50000 | D3: =Input!B17 -> 0 | E3: =MAX(0,D3-H3) -> 0 | F3: Y | G3: 1 | H3: =IF(F3="Y",B3,0) -> 235000 | I3: =IF(F3="N",0,MAX(C3-D3,0)) -> 50000 | T3: =E3 -> 0 | X3: =IFERROR(VLOOKUP(A3,$E$26:$F$31,2,FALSE),FALSE) -> FALSE | Y3: =IF(AND(A3=currentYear,X3=TRUE),1,0) -> 0
A4: 2009/10 | B4: 245000 | C4: 50000 | D4: =Input!B18 -> 0 | E4: 0 | F4: Y | G4: 2 | H4: =IF(F4="Y",B4,0) -> 245000 | I4: =IF(F4="N",0,MAX(C4-D4,0)) -> 50000 | S4: =I3-R4 -> 50000 | T4: =E4 -> 0 | X4: =IFERROR(VLOOKUP(A4,$E$26:$F$31,2,FALSE),FALSE) -> FALSE | Y4: 0
A5: 2010/11 | B5: 255000 | C5: 50000 | D5: =Input!B19 -> 0 | E5: 0 | F5: Y | G5: 3 | H5: =IF(F5="Y",B5,0) -> 255000 | I5: =IF(F5="N",0,MAX(C5-D5,0)) -> 50000 | N5: =S4 -> 50000 | P5: =N5-O5 -> 50000 | Q5: =M5-O5 -> 0 | S5: =I4-R5 -> 50000 | T5: =E5 -> 0 | X5: FALSE | Y5: 0
A6: 2011/12 (pre 14.10.11) | B6: 255000 | C6: 0 | D6: =Input!B20 -> 0 | E6: 0 | F6: Y | G6: 1 | H6: =IF(F6="Y",MAX(B6-D7,B6-B7),0) -> 255000 | J6: =P5 -> 50000 | K6: =IF(F6="Y",MIN(E6,J6),0) -> 0 | L6: =J6-K6 -> 50000 | M6: =E6-K6 -> 0 | N6: =S5 -> 50000 | O6: =MIN(M6,N6) -> 0 | P6: =N6-O6 -> 50000 | Q6: =M6-O6 -> 0 | R6: =MIN(I5,Q6) -> 0 | S6: =I5-R6 -> 50000 | T6: =Q6-R6 -> 0 | U6: =IF(K6=0,"",FIXED(K6)&" from "&A3) ->  | V6: =IF(O6=0,"",FIXED(O6)&" from "&A4) ->  | W6: =IF(R6=0,"",FIXED(R6)&" from "&A5) ->  | X6: FALSE | Y6: 0
A7: 2011/12 (post 13.10.11) | B7: 50000 | C7: 50000 | D7: =Input!B21 -> 0 | E7: 0 | F7: Y | G7: 1 | H7: =IF(F7="Y",B7,0) -> 50000 | I7: =IF(F7="N",0,MAX(C7-(D6+D7),0)) -> 50000 | J7: =L6 -> 50000 | K7: 0 | L7: =J7-K7 -> 50000 | M7: 0 | N7: =P6 -> 50000 | O7: 0 | P7: =N7-O7 -> 50000 | Q7: =M7-O7 -> 0 | R7: =MIN(S6,Q7) -> 0 | S7: =S6-R7 -> 50000 | T7: 0 | U7: =IF(K7=0,"",FIXED(K7)&" from "&A3) ->  | V7: =IF(O7=0,"",FIXED(O7)&" from "&A4) ->  | W7: =IF(R7=0,"",FIXED(R7)&" from "&A5) ->  | X7: FALSE | Y7: 0
A8: 2012/13 | B8: 50000 | C8: 50000 | D8: =Input!B22 -> 0 | E8: 0 | F8: Y | G8: 2 | H8: =IF(F8="Y",B8,0) -> 50000 | I8: =IF(F8="N",0,MAX(C8-D8,0)) -> 50000 | J8: =P7 -> 50000 | K8: 0 | L8: =J8-K8 -> 50000 | M8: 0 | N8: =S7 -> 50000 | O8: 0 | P8: =N8-O8 -> 50000 | Q8: =M8-O8 -> 0 | R8: =MIN(I7,Q8) -> 0 | S8: =I7-R8 -> 50000 | T8: 0 | U8: =IF(K8=0,"",FIXED(K8)&" from "&A4) ->  | V8: =IF(O8=0,"",FIXED(O8)&" from "&A5) ->  | W8: =IF(R8=0,"",FIXED(R8)&" from "&LEFT(A7,7)) ->  | X8: FALSE | Y8: 0
A9: 2013/14 | B9: 50000 | C9: 50000 | D9: =Input!B23 -> 0 | E9: 0 | F9: Y | G9: 3 | H9: =IF(F9="Y",B9,0) -> 50000 | I9: =IF(F9="N",0,MAX(C9-D9,0)) -> 50000 | J9: =P8 -> 50000 | K9: 0 | L9: =J9-K9 -> 50000 | M9: 0 | N9: =S8 -> 50000 | O9: 0 | P9: =N9-O9 -> 50000 | Q9: =M9-O9 -> 0 | R9: =MIN(I8,Q9) -> 0 | S9: =I8-R9 -> 50000 | T9: 0 | U9: =IF(K9=0,"",FIXED(K9)&" from "&A5) ->  | V9: =IF(O9=0,"",FIXED(O9)&" from "&LEFT(A7,7)) ->  | W9: =IF(R9=0,"",FIXED(R9)&" from "&A8) ->  | X9: FALSE | Y9: 0
A10: 2014/15 | B10: 40000 | C10: 40000 | D10: =Input!B24 -> 0 | E10: 0 | F10: Y | G10: 4 | H10: =IF(F10="Y",B10,0) -> 40000 | I10: =IF(F10="N",0,MAX(C10-D10,0)) -> 40000 | J10: =P9 -> 50000 | K10: 0 | L10: =J10-K10 -> 50000 | M10: 0 | N10: =S9 -> 50000 | O10: 0 | P10: =N10-O10 -> 50000 | Q10: =M10-O10 -> 0 | R10: =MIN(I9,Q10) -> 0 | S10: =I9-R10 -> 50000 | T10: 0 | U10: =IF(K10=0,"",FIXED(K10)&" from "&LEFT(A7,7)) ->  | V10: =IF(O10=0,"",FIXED(O10)&" from "&A8) ->  | W10: =IF(R10=0,"",FIXED(R10)&" from "&A9) ->  | X10: FALSE | Y10: 0
A11: 2015/16 (pre 9.7.15) | B11: 80000 | C11: 0 | D11: =Input!B25 -> 0 | E11: 0 | F11: Y | G11: 6 | H11: =IF(F11="Y",B11,0) -> 80000 | J11: 50000 | K11: 0 | L11: 50000 | M11: 0 | N11: 50000 | O11: 0 | P11: 50000 | Q11: 0 | R11: =MIN(I10,Q11) -> 0 | S11: =I10-R11 -> 40000 | T11: 0 | U11: =IF(K11=0,"",FIXED(K11)&" from "&A8) ->  | V11: =IF(O11=0,"",FIXED(O11)&" from "&A9) ->  | W11: =IF(R11=0,"",FIXED(R11)&" from "&A10) ->  | X11: FALSE | Y11: 0
A12: 2015/16 (post 8.7.15) | B12: 40000 | C12: =H12 -> 40000 | D12: =Input!B26 -> 0 | E12: 0 | F12: Y | G12: 6 | H12: =IF(F12="N",0,IF(F11="N",B12,MAX(MIN(B12,H11-D11),0))) -> 40000 | I12: =IF(F12="N",0,MAX(C12-D12,0)) -> 40000 | J12: =L11 -> 50000 | K12: 0 | L12: =J12-K12 -> 50000 | M12: 0 | N12: =P11 -> 50000 | O12: 0 | P12: =N12-O12 -> 50000 | Q12: =M12-O12 -> 0 | R12: =MIN(S11,Q12) -> 0 | S12: =S11-R12 -> 40000 | T12: 0 | U12: =IF(K12=0,"",FIXED(K12)&" from "&A8) ->  | V12: =IF(O12=0,"",FIXED(O12)&" from "&A9) ->  | W12: =IF(R12=0,"",FIXED(R12)&" from "&A10) ->  | X12: FALSE | Y12: 0
A13: 2016/17 | B13: 40000 | C13: 40000 | D13: =Input!B27 -> 0 | E13: 0 | F13: Y | G13: 7 | H13: ='Taper Input'!L12 -> 40000 | I13: 40000 | J13: =P12 -> 50000 | K13: 0 | L13: =J13-K13 -> 50000 | M13: 0 | N13: =S12 -> 40000 | O13: 0 | P13: =N13-O13 -> 40000 | Q13: =M13-O13 -> 0 | R13: =MIN(I12,Q13) -> 0 | S13: =I12-R13 -> 40000 | T13: 0 | U13: =IF(K13=0,"",FIXED(K13)&" from "&A9) ->  | V13: =IF(O13=0,"",FIXED(O13)&" from "&A10) ->  | W13: =IF(R13=0,"",FIXED(R13)&" from "&LEFT(A12,7)) ->  | X13: FALSE | Y13: 0 | Z13: ='Taper Input'!$F12<'Taper Input'!$C12 -> FALSE | AA13: 110000 | AB13: 150000 | AC13: 10000 | AD13: =H13-AC13 -> 30000
A14: 2017/18 | B14: 40000 | C14: 40000 | D14: =Input!B28 -> 0 | E14: 0 | F14: Y | G14: 8 | H14: ='Taper Input'!L13 -> 40000 | I14: 40000 | J14: =P13 -> 40000 | K14: 0 | L14: =J14-K14 -> 40000 | M14: 0 | N14: 40000 | O14: 0 | P14: 40000 | Q14: =M14-O14 -> 0 | R14: 0 | S14: 40000 | T14: 0 | U14: =IF(K14=0,"",FIXED(K14)&" from "&A10) ->  | V14: =IF(O14=0,"",FIXED(O14)&" from "&LEFT(A12,7)) ->  | W14: =IF(R14=0,"",FIXED(R14)&" from "&A13) ->  | X14: FALSE | Y14: 0 | Z14: ='Taper Input'!$F13<'Taper Input'!$C13 -> FALSE | AA14: 110000 | AB14: 150000 | AC14: 10000 | AD14: 30000
A15: 2018/19 | B15: 40000 | C15: 40000 | D15: =Input!B29 -> 0 | E15: 0 | F15: Y | G15: 9 | H15: ='Taper Input'!L14 -> 40000 | I15: 40000 | J15: 40000 | K15: 0 | L15: 40000 | M15: 0 | N15: 40000 | O15: 0 | P15: 40000 | Q15: 0 | R15: 0 | S15: 40000 | T15: 0 | U15: =IF(K15=0,"",FIXED(K15)&" from "&LEFT(A12,7)) ->  | V15: =IF(O15=0,"",FIXED(O15)&" from "&A13) ->  | X15: FALSE | Y15: 0 | Z15: ='Taper Input'!$F14<'Taper Input'!$C14 -> FALSE | AA15: 110000 | AB15: 150000 | AC15: 10000 | AD15: 30000
A16: 2019/20 | B16: 40000 | C16: 40000 | D16: =Input!B30 -> 0 | E16: 0 | F16: Y | G16: 11 | H16: ='Taper Input'!L15 -> 40000 | I16: 40000 | J16: 40000 | K16: 0 | L16: 40000 | M16: 0 | N16: =S15 -> 40000 | O16: 0 | P16: =N16-O16 -> 40000 | Q16: 0 | R16: 0 | S16: 40000 | T16: 0 | U16: =IF(K16=0,"",FIXED(K16)&" from "&A13) ->  | X16: FALSE | Y16: 0 | Z16: ='Taper Input'!$F15<'Taper Input'!$C15 -> FALSE | AA16: 110000 | AB16: 150000 | AC16: 10000 | AD16: 30000
A17: 2020/21 | B17: 40000 | C17: 40000 | D17: =Input!B31 -> 0 | E17: =MAX(0,D17-H17) -> 0 | F17: Y | G17: 12 | H17: ='Taper Input'!L16 -> 40000 | I17: 40000 | J17: =P16 -> 40000 | K17: =IF(F17="Y",MIN(E17,J17),0) -> 0 | L17: =J17-K17 -> 40000 | M17: =E17-K17 -> 0 | N17: 40000 | O17: =MIN(M17,N17) -> 0 | P17: 40000 | Q17: =M17-O17 -> 0 | R17: 0 | S17: 40000 | T17: =Q17-R17 -> 0 | X17: FALSE | Y17: 0 | Z17: ='Taper Input'!$F16<'Taper Input'!$C16 -> FALSE | AA17: 200000 | AB17: 240000 | AC17: 4000 | AD17: 36000
A18: 2021/22 | B18: 40000 | C18: =H18 -> 40000 | D18: =Input!B32 -> 0 | E18: 0 | F18: Y | G18: 13 | H18: ='Taper Input'!L17 -> 40000 | I18: 40000 | J18: 40000 | K18: 0 | L18: 40000 | M18: 0 | N18: 40000 | O18: 0 | P18: 40000 | Q18: 0 | R18: 0 | S18: 40000 | T18: 0 | X18: =IFERROR(VLOOKUP(A18,$E$26:$F$41,2,FALSE),FALSE) -> FALSE | Y18: 0 | Z18: ='Taper Input'!$F17<'Taper Input'!$C17 -> FALSE | AA18: 200000 | AB18: 240000 | AC18: 4000 | AD18: 36000
A19: 2022/23 | B19: 40000 | C19: 40000 | D19: =Input!B33 -> 0 | E19: 0 | F19: Y | G19: 14 | H19: ='Taper Input'!L18 -> 40000 | I19: 40000 | J19: 40000 | K19: 0 | L19: 40000 | M19: 0 | N19: 40000 | O19: 0 | P19: 40000 | Q19: 0 | R19: =MIN(I18,Q19) -> 0 | S19: =I18-R19 -> 40000 | T19: 0 | X19: FALSE | Y19: =IF(AND(A19=currentYear,X19=TRUE),1,0) -> 0 | Z19: ='Taper Input'!$F18<'Taper Input'!$C18 -> FALSE | AA19: 200000 | AB19: 240000 | AC19: 4000 | AD19: 36000
A20: 2023/24 | B20: 60000 | C20: 60000 | D20: =Input!B34 -> 0 | E20: 0 | F20: Y | G20: 15 | H20: ='Taper Input'!L19 -> 60000 | I20: =IF(F20="N",0,MAX(C20-D20,0)) -> 60000 | J20: 40000 | K20: 0 | L20: 40000 | M20: 0 | N20: 40000 | O20: 0 | P20: 40000 | Q20: 0 | R20: =MIN(I19,Q20) -> 0 | S20: =I19-R20 -> 40000 | T20: 0 | W20: =IF(R20=0,"",FIXED(R20)&" from "&A19) ->  | X20: FALSE | Y20: =IF(AND(A20=currentYear,X20=TRUE),1,0) -> 0 | Z20: ='Taper Input'!$F19<'Taper Input'!$C19 -> FALSE | AA20: 200000 | AB20: 260000 | AC20: 10000 | AD20: 50000
A21: 2024/25 | B21: 60000 | C21: 60000 | D21: =Input!B35 -> 0 | E21: 0 | F21: Y | G21: 16 | H21: ='Taper Input'!L20 -> 60000 | I21: =IF(F21="N",0,MAX(C21-D21,0)) -> 60000 | J21: 40000 | K21: 0 | L21: 40000 | M21: 0 | N21: 40000 | O21: 0 | P21: 40000 | Q21: 0 | R21: =MIN(I20,Q21) -> 0 | S21: =I20-R21 -> 60000 | T21: 0 | V21: =IF(O21=0,"",FIXED(O21)&" from "&A19) ->  | W21: =IF(R21=0,"",FIXED(R21)&" from "&A20) ->  | X21: FALSE | Y21: =IF(AND(A21=currentYear,X21=TRUE),1,0) -> 0 | Z21: ='Taper Input'!$F20<'Taper Input'!$C20 -> FALSE | AA21: 200000 | AB21: 260000 | AC21: 10000 | AD21: 50000
A22: 2025/26 | B22: 60000 | C22: 60000 | D22: =Input!B36 -> 0 | E22: 0 | F22: Y | G22: 17 | H22: ='Taper Input'!L21 -> 60000 | I22: =IF(F22="N",0,MAX(C22-D22,0)) -> 60000 | J22: 40000 | K22: 0 | L22: 40000 | M22: 0 | N22: =S21 -> 60000 | O22: 0 | P22: =N22-O22 -> 60000 | Q22: 0 | R22: =MIN(I21,Q22) -> 0 | S22: =I21-R22 -> 60000 | T22: 0 | U22: =IF(K22=0,"",FIXED(K22)&" from "&A19) ->  | V22: =IF(O22=0,"",FIXED(O22)&" from "&A20) ->  | W22: =IF(R22=0,"",FIXED(R22)&" from "&A21) ->  | X22: FALSE | Y22: =IF(AND(A22=currentYear,X22=TRUE),1,0) -> 0 | Z22: ='Taper Input'!$F21<'Taper Input'!$C21 -> FALSE | AA22: 200000 | AB22: 260000 | AC22: 10000 | AD22: 50000
A23: 2026/27 | B23: 60000 | C23: 60000 | D23: =Input!B37 -> 0 | E23: =MAX(0,D23-H23) -> 0 | F23: Y | G23: 18 | H23: =newTapered -> 60000 | I23: =IF(F23="N",0,MAX(C23-D23,0)) -> 60000 | J23: =P22 -> 60000 | K23: =IF(F23="Y",MIN(E23,J23),0) -> 0 | L23: =J23-K23 -> 60000 | M23: =E23-K23 -> 0 | N23: =S22 -> 60000 | O23: =MIN(M23,N23) -> 0 | P23: =N23-O23 -> 60000 | Q23: =M23-O23 -> 0 | R23: =MIN(I22,Q23) -> 0 | S23: =I22-R23 -> 60000 | T23: =Q23-R23 -> 0 | U23: =IF(K23=0,"",FIXED(K23)&" from "&A20) ->  | V23: =IF(O23=0,"",FIXED(O23)&" from "&A21) ->  | W23: =IF(R23=0,"",FIXED(R23)&" from "&A22) ->  | X23: FALSE | Y23: =IF(AND(A23=currentYear,X23=TRUE),1,0) -> 0 | Z23: ='Taper Input'!$F22<'Taper Input'!$C22 -> FALSE | AA23: 200000 | AB23: 260000 | AC23: 10000 | AD23: 50000
A26: Taper Calcs | C26: Adjusted for Max contribution | F26: Tick box link | G26: =COUNTIF(F27:F41,"TRUE") -> 0
A27: carry forward available | B27: =J23+N23+I22 -> 180000 | C27: =B27 -> 180000 | E27: 2016/17 | F27: =IF(INDIRECT(G27)=$A$60,TRUE,FALSE) -> FALSE | G27: ="Taper"&COUNTA($E$27:E27) -> Taper1
A28: already input | B28: =SUM('Taper Input'!D22:G22) -> 0 | C28: =B28 -> 0 | E28: 2017/18 | F28: =IF(INDIRECT(G28)=$A$60,TRUE,FALSE) -> FALSE | G28: ="Taper"&COUNTA($E$27:E28) -> Taper2
A29: threshold | B29: ='Taper Input'!J22 -> 0 | C29: =Overview!J19 -> 0 | E29: 2018/19 | F29: =IF(INDIRECT(G29)=$A$60,TRUE,FALSE) -> FALSE | G29: ="Taper"&COUNTA($E$27:E29) -> Taper3
A30: adjusted | B30: ='Taper Input'!K22 -> 0 | C30: =Overview!K19 -> 0 | E30: 2019/20 | F30: =IF(INDIRECT(G30)=$A$60,TRUE,FALSE) -> FALSE | G30: ="Taper"&COUNTA($E$27:E30) -> Taper4
A31: tapered | B31: ='Taper Input'!L22 -> 60000 | C31: =Overview!M19 -> 60000 | E31: 2020/21 | F31: =IF(INDIRECT(G31)=$A$60,TRUE,FALSE) -> FALSE | G31: ="Taper"&COUNTA($E$27:E31) -> Taper5
A32: Before goal seek, max contribution (as flex remuneration) | B32: =IF(empsalsac=TRUE,I23+P23+S23+L23,0) -> 0 | E32: 2021/22 | F32: =IF(INDIRECT(G32)=$A$60,TRUE,FALSE) -> FALSE | G32: ="Taper"&COUNTA($E$27:E32) -> Taper6
A33: additional investor cont | B33: =IF(AND(Inv_Emp="Investor",maxCheck=TRUE),MAX(IF(AND(B29>Threshold,B30>Adjusted,TaperMax+B27-B28<B29-Threshold),B31,TaperMax)+B27-B28,0),0) -> 0 | E33: 2022/23 | F33: =IF(INDIRECT(G33)=$A$60,TRUE,FALSE) -> FALSE | G33: ="Taper"&COUNTA($E$27:E33) -> Taper7
A34: additional employer cont | E34: 2023/24 | F34: =IF(INDIRECT(G34)=$A$60,TRUE,FALSE) -> FALSE | G34: ="Taper"&COUNTA($E$27:E34) -> Taper8
A35: new threshold | B35: =MAX(0,B29-B33+IF(empsalsac=TRUE,newEmp,0)) -> 0 | E35: 2024/25 | F35: =IF(INDIRECT(G35)=$A$60,TRUE,FALSE) -> FALSE | G35: ="Taper"&COUNTA($E$27:E35) -> Taper9
A36: new adjusted | B36: =B30+B34 -> 0 | E36: 2025/26 | F36: =IF(INDIRECT(G36)=$A$60,TRUE,FALSE) -> FALSE | G36: ="Taper"&COUNTA($E$27:E36) -> Taper10
A37: new tapered | B37: =TaperMax-IF(B35>Threshold,MIN(MAX((FLOOR(B36-Adjusted,2))/2,0),TaperMaxDeduction)) -> 60000 | E37: 2026/27 | F37: =IF(INDIRECT(G37)=$A$60,TRUE,FALSE) -> FALSE | G37: ="Taper"&COUNTA($E$27:E37) -> Taper11
A38: excess | B38: =(B28+B33+B34)-(B27+B37) -> -240000
A40: need to goal seek? | B40: =AND((B29+B32)>Threshold,maxCheck=TRUE,Inv_Emp = "Employer",excess<=0) -> FALSE
A41: maximum cont? | B41: TRUE
A42: Wording for taper cal | B42: =IF((SUM(Y3:Y1006)*maxCheck)=1,"Who will make the contribution? Select on the right to change.","") ->  | C42: ="If the wording shows it will display as: "&"Who will make the contribution?"&" Currently set to "&B43&". Click buttons to the right to change." -> If the wording shows it will display as: Who will make the contribution? Currently set to . Click buttons to the right to change.
A43: Inv_Emp input | B43: =IF(inv_emp_full=0,"",inv_emp_full) ->  | E43: ="For year "&currentYear&" the annual allowance parameters are:" -> For year 2026/27 the annual allowance parameters are:
A44: Inv_emp | B44: =LEFT(B43,8) ->  | E44: Threshold income | F44: =VLOOKUP(currentYear,A2:AA$24,27,FALSE) -> 200000
A45: Employer | B45: =A45=B43 -> FALSE | E45: Adjusted Income | F45: =VLOOKUP(currentYear,$A$2:$AC$24,28,FALSE) -> 260000
A46: Employer - Salary Sacrifice or Flexible Remuneration | B46: =A46=B43 -> FALSE | E46: Taper max | F46: =VLOOKUP(currentYear,$A$2:$AC$24,2,FALSE) -> 60000
A47: Is blank? | B47: =IF(show_taper=1,IF(Inv_Emp="Investor","false",IF(Inv_Emp = "Employer","False","True")),"False") -> False | E47: Taper min | F47: =VLOOKUP(currentYear,$A$2:$AC$24,29,FALSE) -> 10000
A48: Is contribution drop down selected? | B48: FALSE | E48: Max deduction on taper | F48: =VLOOKUP(currentYear,$A$2:$AD$24,30,FALSE) -> 50000
A49: Show Taper Calc Row? | B49: =SUM(Y12:Y49)*maxCheck -> 0
A50: Is Employer Contribution less than Salary Sacrifice? | B50: =IF(COUNTIF(Z13:Z17,"TRUE")>0,TRUE,FALSE) -> FALSE
A51: Is Relief at Source > Net Income? | B51: ='Taper Input'!D16>'Taper Input'!B16 -> FALSE
A52: Count of taper tick boxes selected | B52: =COUNTIF(F27:F34,TRUE) -> 0
A53: CurrentInvEmp | B53: ="Currently set to "&B43 -> Currently set to
A56: Investor
A57: Employer
A58: Employer - Salary Sacrifice or Flexible Remuneration
A60: Calculate Tapered AA
A61: N/A
A62: £ column wording year | B62: =_xlfn.XLOOKUP(_xlfn.XLOOKUP(currentYear,A2:A26,G2:G26)-3,G:G,A:A) -> 2023/24
A73: Taper Input table - linked picture | B73: Inputs - please keep column widths to 10.89
B74: Tax year | C74: Threshold limit | D74: Adjusted limit | E74: Max. reduction | F74: Min. TAA
B75: 23/24 onwards | C75: 200000 | D75: 260000 | E75: 50000 | F75: 10000
B76: 20/21 to 22/23 | C76: 200000 | D76: 240000 | E76: 36000 | F76: 4000
B77: 16/17 to 19/20 | C77: 110000 | D77: 150000 | E77: 30000 | F77: 10000
B78: Test
